bitfinex/quotes_SOLUSD_20241117
["timestamp","ask_amount","ask_price","bid_price","bid_amount"]
[1731828529307,12.9459838,237.52,237.45,4.2113]
[1731828530403,12.9459838,237.52,237.46,23.776884]
[1731828531703,12.9459838,237.52,237.41,6.45551767]
[1731828531704,12.9459838,237.5,237.41,6.45551767]
[1731828531918,12.9459838,237.5,237.41,21.19781767]
[1731828532284,12.9459838,237.5,237.41,6.45551767]
[1731828532285,12.9459838,237.47,237.41,6.45551767]
[1731828532510,12.9459838,237.43,237.4,12.91103535]
[1731828532715,12.9459838,237.43,237.36,16.98761767]
[1731828533494,12.9459838,237.45,237.36,21.20051767]
[1731828533689,12.9459838,237.39,237.35,6.45551767]
[1731828533910,12.9459838,237.37,237.31,11.71320462]
[1731828534109,12.9459838,237.37,237.31,10.5345]
[1731828534616,12.9459838,237.39,237.31,10.5345]
[1731828534795,12.9459838,237.39,237.31,14.7483]
[1731828534993,12.9459838,237.39,237.31,10.5345]
[1731828535192,24.2108,237.48,237.34,12.9459838]
[1731828535399,12.9459838,237.45,237.34,12.9459838]
[1731828535610,20.8718,237.49,237.36,12.9459838]
[1731828535795,20.8718,237.49,237.44,12.9459838]
[1731828535796,16.6611,237.49,237.44,12.9459838]
[1731828536110,16.6611,237.49,237.45,23.776884]
[1731828536314,12.9459838,237.54,237.46,12.9459838]
[1731828536504,16.6611,237.55,237.47,23.776884]
[1731828537519,16.6611,237.55,237.49,23.776884]
[1731828539019,16.6611,237.55,237.48,10.5272]
[1731828539313,20.8708,237.55,237.47,23.776884]
[1731828539516,12.9459838,237.54,237.47,23.776884]
[1731828540216,12.9459838,237.48,237.4,6.45551767]
[1731828540423,12.9459838,237.48,237.38,27.6899838]
[1731828541419,17.1568838,237.48,237.38,27.6899838]
[1731828542090,17.1568838,237.48,237.39,23.776884]
[1731828542489,17.1568838,237.48,237.39,27.989284]
[1731828542911,12.9459838,237.42,237.33,14.747]
[1731828543495,12.9459838,237.42,237.33,27.6929838]
[1731828544118,12.9459838,237.4,237.33,10.5336]
[1731828544620,12.9459838,237.38,237.3,4.214]
[1731828545119,12.9459838,237.38,237.28,14.7501]
[1731828546115,17.1586838,237.38,237.28,14.7501]
[1731828546324,12.9459838,237.36,237.28,14.7501]
[1731828546907,12.9459838,237.36,237.28,10.5358]
[1731828547723,12.9459838,237.36,237.29,23.776884]
[1731828547926,12.9459838,237.38,237.29,23.776884]
[1731828548244,16.6611,237.43,237.33,23.776884]
[1731828548424,16.6611,237.43,237.34,12.9459838]
[1731828548617,16.6611,237.43,237.35,23.776884]
[1731828549336,16.6611,237.43,237.35,27.989984]
[1731828549914,16.6611,237.43,237.37,23.776884]
[1731828550138,12.9459838,237.47,237.37,23.776884]
[1731828550321,12.9459838,237.49,237.38,12.9459838]
[1731828550636,12.9459838,237.49,237.4,12.9459838]
[1731828550846,12.9459838,237.49,237.41,23.776884]
[1731828551247,4.2108,237.48,237.41,23.776884]
[1731828551733,12.9459838,237.45,237.38,23.776884]
[1731828552117,12.9459838,237.45,237.35,27.6919838]
[1731828552337,12.9459838,237.45,237.35,14.746]
[1731828553315,4.2115,237.44,237.35,14.746]
[1731828553511,4.2115,237.44,237.36,23.776884]
[1731828553912,12.9459838,237.43,237.36,23.776884]
[1731828554342,17.1578838,237.43,237.36,23.776884]
[1731828554543,12.9459838,237.41,237.33,4.2134]
[1731828554716,12.9459838,237.41,237.34,23.776884]
[1731828555313,12.9459838,237.39,237.3,10.5351]
[1731828555518,0.2,237.48,237.3,10.5351]
[1731828555519,4.2096,237.55,237.37,12.9459838]
[1731828555743,12.9459838,237.47,237.37,12.9459838]
[1731828556118,12.9459838,237.47,237.35,12.9459838]
[1731828556315,10.75648842,237.57,237.35,12.9459838]
[1731828556316,10.75648842,237.57,237.43,12.9459838]
[1731828556536,12.9459838,237.55,237.45,12.9459838]
[1731828557021,0.1159135,237.64,237.49,23.776884]
[1731828557323,0.1159135,237.64,237.55,12.9459838]
[1731828557829,0.1159135,237.64,237.58,23.776884]
[1731828558018,13.0618973,237.64,237.54,36.7228678]
[1731828558525,13.0618973,237.64,237.54,27.986484]
[1731828558725,0.1159135,237.64,237.6,23.776884]
[1731828559033,0.1159135,237.64,237.57,12.9459838]
[1731828559238,0.1159135,237.64,237.58,23.776884]
[1731828559633,0.1159135,237.64,237.63,23.776884]
[1731828560738,0.1159135,237.64,237.63,27.985084]
[1731828561035,0.1159135,237.64,237.63,48.66768146]
[1731828567247,0.1159135,237.64,237.63,44.45948146]
[1731828569726,0.0161551,237.64,237.63,50.60328146]
[1731828572027,4.2056,237.78,237.68,23.776884]
[1731828572224,4.2056,237.78,237.71,20.68259746]
[1731828573149,20.68259746,237.79,237.69,20.68259746]
[1731828573379,20.68259746,237.77,237.69,20.68259746]
[1731828573529,20.68259746,237.77,237.7,23.776884]
[1731828574227,20.68259746,237.79,237.7,23.776884]
[1731828574825,4.2052,237.8,237.72,23.776884]
[1731828575228,4.2052,237.8,237.74,23.776884]
[1731828575841,19.4672,237.81,237.74,23.776884]
[1731828578250,20.68259746,237.8,237.71,20.68259746]
[1731828578432,20.68259746,237.8,237.72,23.776884]
[1731828579225,20.68259746,237.78,237.67,20.68259746]
[1731828579429,20.68259746,237.72,237.64,10.5198]
[1731828579843,20.68259746,237.74,237.65,20.68259746]
[1731828580234,4.2064,237.73,237.65,20.68259746]
[1731828580441,4.2064,237.73,237.65,24.89039746]
[1731828580640,4.2064,237.73,237.65,20.68259746]
[1731828580839,4.2064,237.73,237.65,23.776884]
[1731828581855,12.92764051,237.66,237.53,12.92764051]
[1731828582147,12.92764051,237.63,237.53,12.92764051]
[1731828582862,12.92764051,237.65,237.55,12.92764051]
[1731828583158,4.208,237.64,237.55,12.92764051]
[1731828583453,4.208,237.64,237.56,23.776884]
[1731828583748,12.92764051,237.58,237.41,4.2119]
[1731828583953,21.9779,237.6,237.41,4.2119]
[1731828583954,12.92764051,237.52,237.41,17.13954051]
[1731828584142,21.9779,237.6,237.44,12.92764051]
[1731828584349,15.3377,237.6,237.5,12.92764051]
[1731828584959,19.5464,237.6,237.52,12.92764051]
[1731828585349,17.13574051,237.64,237.55,23.776884]
[1731828585547,4.2081,237.64,237.56,12.92764051]
[1731828586848,4.2081,237.64,237.45,0.1]
[1731828586849,12.92764051,237.63,237.52,12.92764051]
[1731828587144,12.92764051,237.63,237.53,23.776884]
[1731828588772,4.2083,237.62,237.53,23.776884]
[1731828589970,12.92764051,237.55,237.43,6.45551767]
[1731828590259,12.92764051,237.44,237.33,12.92764051]
[1731828590660,12.92764051,237.46,237.33,12.92764051]
[1731828591344,4.2114,237.45,237.33,12.92764051]
[1731828591548,4.2114,237.45,237.34,23.776884]
[1731828591766,12.92764051,237.44,237.34,23.776884]
[1731828592264,17.13934051,237.44,237.34,23.776884]
[1731828592668,4.2117,237.44,237.35,12.92764051]
[1731828592851,4.2117,237.44,237.35,20.73438503]
[1731828593055,4.2117,237.44,237.36,23.776884]
[1731828594850,24.94558503,237.46,237.36,23.776884]
[1731828595246,24.94528503,237.48,237.38,23.776884]
[1731828595449,4.2109,237.48,237.4,23.776884]
[1731828596064,24.94528503,237.48,237.38,23.776884]
[1731828599471,20.73438503,237.46,237.38,23.776884]
[1731828599648,20.73438503,237.39,237.22,12.91103535]
[1731828599849,15.363,237.45,237.23,20.73438503]
[1731828599850,20.73438503,237.33,237.23,20.73438503]
[1731828600052,20.73438503,237.35,237.23,20.73438503]
[1731828600256,20.73438503,237.37,237.26,20.73438503]
[1731828600555,20.73438503,237.35,237.24,20.73438503]
[1731828600866,20.73438503,237.33,237.22,20.73438503]
[1731828601051,20.73438503,237.31,237.15,0.1]
[1731828601260,20.73438503,237.31,237.2,20.73438503]
[1731828601572,4.214,237.3,237.2,20.73438503]
[1731828601778,20.73438503,237.29,237.18,20.73438503]
[1731828602869,4.2144,237.28,237.18,20.73438503]
[1731828603054,20.73438503,237.27,237.18,20.73438503]
[1731828603261,20.73438503,237.25,237.14,21.91393464]
[1731828603947,20.73438503,237.25,237.14,1.17954961]
[1731828604143,20.73438503,237.25,237.15,20.73438503]
[1731828604349,20.73438503,237.25,237.13,3.24]
[1731828604656,20.73438503,237.25,237.15,20.73438503]
[1731828605251,4.2151,237.24,237.16,23.776884]
[1731828605965,20.73438503,237.27,237.16,23.776884]
[1731828607075,4.2147,237.26,237.16,23.776884]
[1731828609473,20.73438503,237.25,237.16,23.776884]
[1731828610953,20.73438503,237.21,237.12,23.776884]
[1731828612057,20.73438503,237.21,237.1,10.08325526]
[1731828612058,20.73438503,237.14,237.1,10.08325526]
[1731828612359,20.73438503,237.12,237.05,0.4646735]
[1731828612559,20.73438503,237.1,237.05,0.4646735]
[1731828613164,20.73438503,237.06,237.05,0.4646735]
[1731828614381,20.73438503,237.08,237.05,0.4646735]
[1731828616073,20.73438503,237.1,237.05,0.4646735]
[1731828617757,24.95208503,237.1,237.05,0.4646735]
[1731828618771,17.21456759,237.1,237.05,0.4646735]
[1731828621661,12.99686759,237.08,237.05,0.4646735]
[1731828622163,16.2428,237.18,237.07,12.99686759]
[1731828622488,12.99686759,237.16,237.06,12.99686759]
[1731828622977,12.99686759,237.16,237.07,23.776884]
[1731828623383,4.2167,237.15,237.07,27.994984]
[1731828623689,29.23966759,237.18,237.09,23.776884]
[1731828623982,16.2428,237.18,237.11,23.776884]
[1731828624277,6.6362,237.22,237.13,23.776884]
[1731828624482,10.8517,237.22,237.13,23.776884]
[1731828625385,4.2151,237.24,237.15,23.776884]
[1731828625983,16.2428,237.25,237.19,12.99686759]
[1731828626281,16.2428,237.25,237.15,23.776884]
[1731828626282,15.7537,237.31,237.24,23.776884]
[1731828626461,12.99686759,237.36,237.27,12.99686759]
[1731828626963,4.213,237.36,237.28,23.776884]
[1731828627166,19.9655,237.43,237.33,12.99686759]
[1731828627376,15.7537,237.43,237.34,12.99686759]
[1731828627578,12.99686759,237.4,237.31,10.5346]
[1731828627784,12.99686759,237.4,237.32,23.776884]
[1731828627988,12.99686759,237.4,237.3,12.99686759]
[1731828628459,0.1,237.4,237.24,23.776884]
[1731828628659,19.9656,237.43,237.24,36.77375159]
[1731828628660,0.1,237.42,237.24,36.77375159]
[1731828628876,20.75279766,237.35,237.2,4.2158]
[1731828629076,20.75279766,237.35,237.12,0.1]
[1731828629077,20.75279766,237.27,237.17,20.75279766]
[1731828629267,20.75279766,237.25,237.15,20.75279766]
[1731828629459,4.2151,237.24,237.15,20.75279766]
[1731828630896,4.2151,237.24,237.16,23.776884]
[1731828631580,20.75279766,237.23,237.16,23.776884]
[1731828631884,15.2042,237.29,237.13,20.75279766]
[1731828631885,20.75279766,237.21,237.13,20.75279766]
[1731828632085,20.75279766,237.25,237.15,20.75279766]
[1731828632273,20.75279766,237.23,237.05,6.6951735]
[1731828632583,14.7504,237.28,237.05,6.6951735]
[1731828632584,20.75279766,237.21,237.11,20.75279766]
[1731828633489,20.75279766,237.17,237.05,27.44797116]
[1731828633662,20.75279766,237.15,237.05,27.44797116]
[1731828634795,4.2169,237.14,237.05,27.44797116]
[1731828634970,4.2169,237.14,237.06,23.776884]
[1731828635666,4.2169,237.14,237.05,21.21747116]
[1731828635871,4.2169,237.14,237.05,0.4646735]
[1731828636287,4.2169,237.14,237.05,21.21747116]
[1731828637186,4.2169,237.14,237.06,23.776884]
[1731828637780,19.4208,237.16,237.07,20.75279766]
[1731828638089,19.4208,237.16,237.08,23.776884]
[1731828642586,20.75279766,237.15,237.07,20.75279766]
[1731828642794,20.75279766,237.15,237.05,0.4646735]
[1731828643495,20.75279766,237.13,237.05,0.4646735]
[1731828643797,4.2172,237.12,237.05,0.4646735]
[1731828645276,4.2169,237.14,237.05,0.4646735]
[1731828645487,4.2169,237.14,237.06,20.75279766]
[1731828647903,4.2169,237.14,237.05,0.4646735]
[1731828648508,10.5403,237.19,237.05,0.4646735]
[1731828648509,6.3889008,237.31,237.13,20.75279766]
[1731828648799,56.86489111,237.36,237.18,20.75279766]
[1731828648800,24.96699766,237.29,237.18,20.75279766]
[1731828650003,20.75279766,237.27,237.16,20.75279766]
[1731828650201,36.53279766,237.25,237.15,23.776884]
[1731828650421,20.75279766,237.23,237.14,20.75279766]
[1731828651287,20.75279766,237.21,237.12,20.75279766]
[1731828651487,20.75279766,237.16,237.06,20.75279766]
[1731828651988,24.96859766,237.2,237.1,20.75279766]
[1731828652386,20.75279766,237.18,237.08,20.75279766]
[1731828652592,4.2158,237.2,237.06,20.75279766]
[1731828652593,20.75279766,237.16,237.06,20.75279766]
[1731828653681,4.2167,237.15,237.06,20.75279766]
[1731828654008,20.75279766,237.14,237.06,20.75279766]
[1731828656003,24.96969766,237.14,237.06,20.75279766]
[1731828656187,4.2169,237.14,237.06,20.75279766]
[1731828657298,20.75279766,237.2,237.1,23.776884]
[1731828657609,20.75279766,237.13,237.05,0.4646735]
[1731828658517,20.75279766,237.15,237.05,21.21747116]
[1731828658812,20.75279766,237.15,237.05,13.45669897]
[1731828658813,12.99202547,237.15,237.05,13.45669897]
[1731828659294,4.2169,237.14,237.05,13.45669897]
[1731828659913,4.2166,237.16,237.07,12.99202547]
[1731828660803,10.5382,237.23,237.09,12.99202547]
[1731828660804,4.2163,237.18,237.09,12.99202547]
[1731828661183,12.99202547,237.21,237.11,12.99202547]
[1731828661499,4.2158,237.2,237.11,12.99202547]
[1731828661701,4.2155,237.22,237.15,12.99202547]
[1731828661885,15.78,237.25,237.19,12.99202547]
[1731828662091,17.20632547,237.29,237.2,23.776884]
[1731828662292,17.20632547,237.29,237.19,12.99202547]
[1731828662492,12.99202547,237.27,237.19,12.99202547]
[1731828662890,4.2143,237.29,237.21,20.7629037]
[1731828664592,20.7629037,237.3,237.22,23.776884]
[1731828665088,16.2854,237.31,237.23,20.7629037]
[1731828665288,16.2854,237.31,237.24,23.776884]
[1731828665705,16.2854,237.31,237.25,20.7629037]
[1731828665911,4.2136,237.33,237.25,20.7629037]
[1731828666103,4.2133,237.35,237.25,20.7629037]
[1731828666308,24.9762037,237.35,237.25,20.7629037]
[1731828666506,20.7629037,237.35,237.27,20.7629037]
[1731828666703,37.0483037,237.37,237.27,20.7629037]
[1731828667121,37.0483037,237.37,237.28,23.776884]
[1731828667818,41.2612037,237.37,237.28,23.776884]
[1731828668121,6.6381,237.44,237.28,23.776884]
[1731828668122,20.7629037,237.4,237.31,20.7629037]
[1731828668421,20.7629037,237.42,237.32,23.776884]
[1731828668599,20.7629037,237.42,237.33,20.7629037]
[1731828669711,20.7629037,237.44,237.36,23.776884]
[1731828669916,37.0483037,237.46,237.37,20.7629037]
[1731828670094,20.7629037,237.48,237.38,23.776884]
[1731828670296,20.7629037,237.48,237.39,20.7629037]
[1731828670801,20.7629037,237.5,237.4,23.776884]
[1731828671005,20.7629037,237.48,237.37,20.7629037]
[1731828671216,20.7629037,237.48,237.38,23.776884]
[1731828671908,20.7629037,237.48,237.4,23.776884]
[1731828672101,20.7629037,237.49,237.4,23.776884]
[1731828672296,20.7629037,237.48,237.4,23.776884]
[1731828672699,20.7629037,237.46,237.38,23.776884]
[1731828675608,20.7629037,237.46,237.37,23.776884]
[1731828678407,20.7629037,237.42,237.37,23.776884]
[1731828678606,20.7629037,237.42,237.33,20.7629037]
[1731828678607,20.7629037,237.38,237.3,16.4166]
[1731828679529,10.5245,237.54,237.37,20.7629037]
[1731828679696,20.7629037,237.48,237.4,23.776884]
[1731828680119,20.7629037,237.48,237.38,23.776884]
[1731828681407,4.2107,237.49,237.38,23.776884]
[1731828681618,4.2094,237.56,237.45,20.7629037]
[1731828681921,36.9711037,237.57,237.48,23.776884]
[1731828682306,20.7629037,237.57,237.48,23.776884]
[1731828682809,4.2086,237.61,237.49,20.7629037]
[1731828683001,20.7629037,237.59,237.5,23.776884]
[1731828683199,20.7629037,237.55,237.45,20.7629037]
[1731828683414,20.7629037,237.55,237.46,23.776884]
[1731828683905,20.7629037,237.53,237.44,23.776884]
[1731828684229,20.7629037,237.51,237.42,15.9172]
[1731828684420,20.0,237.57,237.42,15.9172]
[1731828684596,20.7629037,237.47,237.41,6.4494]
[1731828684798,20.7629037,237.43,237.35,6.4494]
[1731828685610,20.55918986,237.43,237.35,6.4494]
[1731828686213,20.7629037,237.45,237.36,23.776884]
[1731828686415,20.7629037,237.51,237.42,23.776884]
[1731828686726,30.0966,237.57,237.36,0.2]
[1731828686727,20.7629037,237.44,237.36,23.776884]
[1731828686930,20.7629037,237.42,237.36,23.776884]
[1731828687509,20.7629037,237.46,237.36,23.776884]
[1731828688117,20.7629037,237.44,237.36,23.776884]
[1731828688612,20.7629037,237.48,237.38,23.776884]
[1731828688821,20.7629037,237.48,237.4,23.776884]
[1731828691631,15.3642,237.57,237.43,20.7629037]
[1731828691835,15.3642,237.57,237.4,23.776884]
[1731828691836,20.7629037,237.48,237.4,23.776884]
[1731828692031,20.7629037,237.44,237.33,20.7629037]
[1731828692412,14.733,237.56,237.39,20.7629037]
[1731828692413,20.7629037,237.5,237.39,20.7629037]
[1731828692731,20.7629037,237.5,237.35,6.5494]
[1731828692934,20.7629037,237.5,237.41,20.7629037]
[1731828693249,20.7629037,237.44,237.35,27.2123037]
[1731828693547,20.7629037,237.46,237.37,20.7629037]
[1731828694046,20.7629037,237.48,237.39,20.7629037]
[1731828694908,20.7629037,237.48,237.38,23.776884]
[1731828695328,20.7629037,237.46,237.38,23.776884]
[1731828695542,20.7629037,237.44,237.36,23.776884]
[1731828697016,20.7629037,237.47,237.37,20.7629037]
[1731828697521,20.7629037,237.47,237.38,23.776884]
[1731828698034,20.7629037,237.49,237.39,20.7629037]
[1731828698217,20.7629037,237.49,237.4,23.776884]
[1731828698536,20.7629037,237.5,237.4,23.776884]
[1731828698830,12.95263043,237.5,237.4,36.72951443]
[1731828700024,4.2103,237.51,237.43,23.776884]
[1731828700223,25.8876,237.57,237.43,23.776884]
[1731828700224,4.2085,237.61,237.48,12.95263043]
[1731828700417,4.2085,237.61,237.47,23.776884]
[1731828700418,12.95263043,237.6,237.51,23.776884]
[1731828702637,12.95263043,237.58,237.48,12.95263043]
[1731828702848,20.7102546,237.58,237.48,44.4871386]
[1731828703130,20.7102546,237.54,237.47,6.1619]
[1731828703334,20.7102546,237.52,237.47,6.1619]
[1731828704237,20.7102546,237.53,237.47,6.1619]
[1731828704912,26.3342,237.63,237.48,23.776884]
[1731828704913,20.7102546,237.55,237.48,23.776884]
[1731828705116,20.7102546,237.55,237.47,6.1619]
[1731828705419,20.7102546,237.63,237.53,20.7102546]
[1731828706226,20.7102546,237.63,237.54,23.776884]
[1731828707143,20.7102546,237.65,237.55,20.7102546]
[1731828707537,20.7102546,237.65,237.54,23.776884]
[1731828707724,20.7102546,237.65,237.55,20.7102546]
[1731828709540,20.7102546,237.67,237.59,20.7102546]
[1731828709720,20.7102546,237.69,237.59,20.7102546]
[1731828710425,20.7102546,237.69,237.6,4.2087]
[1731828711842,20.7102546,237.69,237.62,4.2083]
[1731828712243,20.7102546,237.65,237.6,10.5218]
[1731828712623,14.7212,237.75,237.6,14.7305]
[1731828712624,20.7102546,237.67,237.6,14.7305]
[1731828714027,20.7102546,237.67,237.6,10.5218]
[1731828715341,4.2074,237.68,237.6,31.2320546]
[1731828716036,4.2074,237.68,237.6,35.4407546]
[1731828717248,20.7102546,237.71,237.6,35.4407546]
[1731828717628,20.7102546,237.71,237.62,20.7102546]
[1731828718350,24.9171546,237.71,237.62,35.4394546]
[1731828719045,20.7102546,237.73,237.64,20.7102546]
[1731828719344,20.7102546,237.73,237.62,14.7292]
[1731828719345,4.2055,237.79,237.72,20.7102546]
[1731828720266,4.2049,237.82,237.74,20.7102546]
[1731828721341,20.7102546,237.83,237.74,20.7102546]
[1731828721524,4.2045,237.84,237.74,20.7102546]
[1731828722420,4.2045,237.84,237.76,20.7102546]
[1731828723547,16.2782735,237.88,237.76,20.7102546]
[1731828723846,4.6685735,237.88,237.78,20.7102546]
[1731828724227,25.3788281,237.88,237.78,20.7102546]
[1731828724440,0.4646735,237.88,237.8,20.7102546]
[1731828724849,0.4646735,237.88,237.8,12.91099648]
[1731828725534,0.4646735,237.88,237.81,4.205]
[1731828726134,12.91099648,237.86,237.75,10.515]
[1731828726344,12.91099648,237.86,237.76,12.91099648]
[1731828726843,13.37566998,237.88,237.78,12.91099648]
[1731828727267,13.37566998,237.88,237.75,14.7209]
[1731828727268,12.91099648,237.86,237.76,12.91099648]
[1731828727628,17.11519648,237.86,237.77,4.2057]
[1731828728735,4.2042,237.86,237.78,12.91099648]
[1731828730346,0.4646735,237.88,237.82,12.91099648]
[1731828730983,0.4646735,237.88,237.86,12.91099648]
[1731828731455,0.4646735,237.88,237.87,23.776884]
[1731828732252,0.4646735,237.88,237.87,27.980784]
[1731828732560,0.3392735,237.88,237.87,27.980784]
[1731828732729,20.63041807,238.06,237.93,158.9607265]
[1731828732931,4.2004,238.07,238.0,20.63041807]
[1731828733144,12.910997,238.08,238.02,20.63041807]
[1731828733351,12.910997,238.08,238.04,20.63041807]
[1731828733649,0.4646735,238.11,238.04,20.63041807]
[1731828738045,4.6644735,238.11,238.06,20.63041807]
[1731828738238,4.6644735,238.11,238.04,20.63041807]
[1731828738440,20.63041807,238.09,237.98,6.6178]
[1731828738655,20.63041807,238.07,237.98,20.63041807]
[1731828738842,20.63041807,238.07,237.9,6.6178]
[1731828738843,20.63041807,238.05,237.96,20.63041807]
[1731828739239,20.0,238.06,237.98,20.63041807]
[1731828739655,20.0,238.08,237.98,20.63041807]
[1731828739861,20.0,238.08,238.0,20.63041807]
[1731828740240,20.63041807,238.05,237.96,20.63041807]
[1731828741168,20.63041807,238.05,237.9,6.6178]
[1731828741169,20.63041807,238.03,237.9,6.6178]
[1731828741345,20.0,238.02,237.92,20.63041807]
[1731828741541,9.8,238.26,238.09,0.1]
[1731828741753,9.8,238.26,238.25,20.63041807]
[1731828742668,9.8,238.26,238.25,73.52283198]
[1731828743469,9.8,238.26,238.25,49.74594798]
[1731828743669,9.8,238.26,238.25,34.83821966]
[1731828743964,0.4646735,238.35,238.25,79.24552173]
[1731828744164,0.4646735,238.35,238.34,20.63041807]
[1731828745347,0.4646735,238.35,238.34,24.82601807]
[1731828745854,0.4646735,238.35,238.34,31.27761385]
[1731828746055,0.4646735,238.35,238.34,54.80330896]
[1731828746261,16.1586,238.48,238.35,23.776884]
[1731828746454,4.1929,238.5,238.43,20.63041807]
[1731828746666,26.97401807,238.56,238.45,20.63041807]
[1731828746837,4.1919,238.55,238.45,20.63041807]
[1731828747465,20.63041807,238.54,238.45,20.63041807]
[1731828747652,20.63041807,238.54,238.35,29.68765812]
[1731828747653,20.63041807,238.54,238.43,20.63041807]
[1731828747853,24.1919,238.55,238.43,20.63041807]
[1731828748169,20.0,238.54,238.43,20.63041807]
[1731828748368,20.63041807,238.48,238.37,20.63041807]
[1731828748550,20.0,238.47,238.37,20.63041807]
[1731828748741,20.63041807,238.48,238.37,20.63041807]
[1731828749365,20.63041807,238.46,238.37,20.63041807]
[1731828749565,20.63041807,238.52,238.42,20.63041807]
[1731828749748,20.63041807,238.5,238.4,20.63041807]
[1731828750144,4.193,238.49,238.35,14.684]
[1731828750360,20.63041807,238.46,238.36,20.63041807]
[1731828750669,20.63041807,238.44,238.32,20.63041807]
[1731828751059,20.63041807,238.42,238.32,20.63041807]
[1731828751364,14.6756,238.49,238.32,20.63041807]
[1731828751365,20.63041807,238.44,238.32,20.63041807]
[1731828751672,20.63041807,238.46,238.36,20.63041807]
[1731828752164,4.1937,238.45,238.36,20.63041807]
[1731828752842,20.63041807,238.44,238.34,20.63041807]
[1731828753247,20.63041807,238.44,238.33,20.0]
[1731828753570,0.2,238.44,238.28,20.63041807]
[1731828753769,20.63041807,238.39,238.28,20.63041807]
[1731828753953,20.63041807,238.39,238.3,20.63041807]
[1731828754156,4.1947,238.4,238.32,20.63041807]
[1731828754468,20.63041807,238.46,238.34,20.63041807]
[1731828754667,4.1933,238.47,238.38,20.63041807]
[1731828756549,4.1933,238.47,238.4,20.63041807]
[1731828757370,4.193,238.49,238.4,20.63041807]
[1731828759164,4.193,238.49,238.3,6.53577772]
[1731828759165,4.1926,238.52,238.44,20.63041807]
[1731828760375,4.1922,238.54,238.48,20.63041807]
[1731828761456,24.82221807,238.56,238.46,20.63041807]
[1731828761644,24.82221807,238.56,238.41,4.1943]
[1731828761645,20.63041807,238.5,238.4,20.63041807]
[1731828761850,20.63041807,238.48,238.38,20.63041807]
[1731828762349,20.73041807,238.46,238.36,20.63041807]
[1731828762769,20.63041807,238.44,238.34,20.63041807]
[1731828762963,20.63041807,238.44,238.27,6.4027]
[1731828762964,20.63041807,238.42,238.32,20.63041807]
[1731828763150,20.63041807,238.4,238.32,20.63041807]
[1731828763346,20.63041807,238.4,238.21,27.3925]
[1731828763347,0.1,238.38,238.3,20.63041807]
[1731828763575,4.1951,238.37,238.28,20.63041807]
[1731828764259,20.63041807,238.36,238.26,20.63041807]
[1731828764458,20.63041807,238.36,238.24,20.63041807]
[1731828764459,20.63041807,238.34,238.24,20.63041807]
[1731828764780,20.63041807,238.36,238.26,20.63041807]
[1731828765145,0.1,238.41,238.33,20.63041807]
[1731828765146,4.1944,238.41,238.33,20.63041807]
[1731828765351,16.2204,238.43,238.33,20.63041807]
[1731828765559,20.4145,238.43,238.37,20.63041807]
[1731828766355,20.4145,238.43,238.28,20.63041807]
[1731828766356,43.27511807,238.51,238.41,20.63041807]
[1731828766558,4.1928,238.5,238.41,20.63041807]
[1731828767679,4.1928,238.5,238.43,20.63041807]
[1731828767981,16.2204,238.51,238.45,20.63041807]
[1731828768353,20.4132,238.51,238.43,20.63041807]
[1731828769167,41.04361807,238.51,238.41,20.63041807]
[1731828769783,20.0,238.5,238.41,20.63041807]
[1731828770482,20.63041807,238.44,238.3,10.4909]
[1731828770783,20.1,238.5,238.3,10.4909]
[1731828770784,20.63041807,238.46,238.36,20.63041807]
[1731828770958,20.0,238.47,238.38,20.63041807]
[1731828771161,20.0,238.5,238.4,20.63041807]
[1731828771361,20.0,238.5,238.38,20.63041807]
[1731828771688,4.1933,238.47,238.38,20.63041807]
[1731828771983,20.63041807,238.43,238.34,20.63041807]
[1731828772375,20.63041807,238.43,238.32,20.63041807]
[1731828773486,4.1942,238.42,238.32,20.63041807]
[1731828773661,4.1942,238.42,238.35,20.63041807]
[1731828773865,4.1942,238.42,238.33,20.63041807]
[1731828775367,24.1942,238.42,238.33,20.63041807]
[1731828776570,20.63041807,238.48,238.39,20.63041807]
[1731828776889,4.193,238.49,238.41,20.63041807]
[1731828778579,4.193,238.49,238.43,20.63041807]
[1731828778791,12.54358307,238.51,238.43,20.63041807]
[1731828779492,8.35088307,238.51,238.43,20.63041807]
[1731828779794,20.63041807,238.51,238.41,10.4861]
[1731828779973,20.63041807,238.51,238.41,20.63041807]
[1731828780175,4.1928,238.5,238.41,20.63041807]
[1731828780789,4.1928,238.5,238.41,20.53904527]
[1731828781088,20.63041807,238.47,238.37,20.63041807]
[1731828782072,20.0,238.46,238.37,20.63041807]